[Event "Titled Tuesday Blitz May 4 2021"]
[White "Lysenko, Volodymyr"]
[Black "Shahinyan, David"]
[WhiteFideId "14175770"]
[BlackFideId "13304380"]
[WhiteElo "1957"]
[BlackElo "2372"]
[Result "1-0"]
[Round "03"]
[TimeControl "180+1"]
[Date "2021.05.04"]
[WhiteClock "0:00:06"]
[BlackClock "0:00:02"]

1. d4 {[%clk 0:03:00]}  d6 {[%clk 0:02:57]} 2. c4 {[%clk 0:02:59]}  e5 {[%clk 0:02:56]} 3. d5 {[%clk 0:02:58]}  f5 {[%clk 0:02:54]} 4. Nc3 {[%clk 0:02:58]}  Nf6 {[%clk 0:02:55]} 5. g3 {[%clk 0:02:55]}  g6 {[%clk 0:02:54]} 6. Bg2 {[%clk 0:02:56]}  Bg7 {[%clk 0:02:55]} 7. e4 {[%clk 0:02:54]}  fxe4 {[%clk 0:02:52]} 8. Nxe4 {[%clk 0:02:53]}  Nxe4 {[%clk 0:02:52]} 9. Bxe4 {[%clk 0:02:53]}  O-O {[%clk 0:02:53]} 10. Bg2 {[%clk 0:02:24]}  Nd7 {[%clk 0:02:31]} 11. Ne2 {[%clk 0:02:22]}  Nf6 {[%clk 0:02:28]} 12. O-O {[%clk 0:02:22]}  Bg4 {[%clk 0:02:26]} 13. h3 {[%clk 0:02:08]}  Bd7 {[%clk 0:02:22]} 14. Nc3 {[%clk 0:02:06]}  Qe7 {[%clk 0:02:03]} 15. Bg5 {[%clk 0:02:06]}  h6 {[%clk 0:01:57]} 16. Be3 {[%clk 0:02:00]}  Kh7 {[%clk 0:01:51]} 17. Qd2 {[%clk 0:01:54]}  Rae8 {[%clk 0:01:36]} 18. Rae1 {[%clk 0:01:53]}  Qd8 {[%clk 0:01:22]} 19. b4 {[%clk 0:01:47]}  b6 {[%clk 0:01:05]} 20. a3 {[%clk 0:01:46]}  Qc8 {[%clk 0:00:58]} 21. Kh2 {[%clk 0:01:43]}  Qa6 {[%clk 0:00:58]} 22. b5 {[%clk 0:01:04]}  Qc8 {[%clk 0:00:39]} 23. a4 {[%clk 0:01:02]}  a5 {[%clk 0:00:34]} 24. bxa6 {[%clk 0:01:01]}  Qxa6 {[%clk 0:00:34]} 25. Nb5 {[%clk 0:00:58]}  Bxb5 {[%clk 0:00:19]} 26. axb5 {[%clk 0:00:59]}  Qb7 {[%clk 0:00:19]} 27. Ra1 {[%clk 0:00:57]}  Ra8 {[%clk 0:00:20]} 28. Qc2 {[%clk 0:00:37]}  Rxa1 {[%clk 0:00:16]} 29. Rxa1 {[%clk 0:00:36]}  Nd7 {[%clk 0:00:12]} 30. Be4 {[%clk 0:00:34]}  Rf6 {[%clk 0:00:13]} 31. Qe2 {[%clk 0:00:25]}  Qc8 {[%clk 0:00:12]} 32. Kg2 {[%clk 0:00:25]}  Nc5 {[%clk 0:00:11]} 33. Bxc5 {[%clk 0:00:24]}  bxc5 {[%clk 0:00:09]} 34. Ra6 {[%clk 0:00:23]}  Kg8 {[%clk 0:00:05]} 35. Rc6 {[%clk 0:00:20]}  Qd7 {[%clk 0:00:04]} 36. Bf3 {[%clk 0:00:16]}  h5 {[%clk 0:00:04]} 37. Be4 {[%clk 0:00:16]}  Bh6 {[%clk 0:00:03]} 38. f3 {[%clk 0:00:15]}  Kg7 {[%clk 0:00:04]} 39. g4 {[%clk 0:00:15]}  h4 {[%clk 0:00:03]} 40. Qd3 {[%clk 0:00:14]}  Bf4 {[%clk 0:00:03]} 41. Qb3 {[%clk 0:00:14]}  Rf7 {[%clk 0:00:03]} 42. b6 {[%clk 0:00:14]}  cxb6 {[%clk 0:00:03]} 43. Qxb6 {[%clk 0:00:15]}  Qe7 {[%clk 0:00:04]} 44. Rxd6 {[%clk 0:00:14]}  Qe8 {[%clk 0:00:04]} 45. Rxg6+ {[%clk 0:00:14]}  Kh7 {[%clk 0:00:03]} 46. Qc6 {[%clk 0:00:13]}  Qf8 {[%clk 0:00:01]} 47. Re6+ {[%clk 0:00:07]}  Kh8 {[%clk 0:00:01]} 48. Re8 {[%clk 0:00:07]}  Rg7 {[%clk 0:00:02]} 49. Rxf8+ {[%clk 0:00:06]} 1-0


[Site "https://www.chess.com"]

[Event "Titled Tuesday Blitz May 4 2021"]
[White "Maly, Alexey"]
[Black "Saravana, Krishnan P."]
[WhiteFideId "14103184"]
[BlackFideId "5018382"]
[WhiteElo "2314"]
[BlackElo "2245"]
[Result "1-0"]
[Round "03"]
[TimeControl "180+1"]
[Date "2021.05.04"]
[WhiteClock "0:01:14"]
[BlackClock "0:00:02"]

1. d4 {[%clk 0:03:00]}  Nf6 {[%clk 0:02:58]} 2. c4 {[%clk 0:03:01]}  g6 {[%clk 0:02:59]} 3. Nc3 {[%clk 0:03:00]}  Bg7 {[%clk 0:03:00]} 4. e4 {[%clk 0:03:01]}  d6 {[%clk 0:03:00]} 5. Be2 {[%clk 0:03:01]}  O-O {[%clk 0:03:01]} 6. Nf3 {[%clk 0:03:02]}  e5 {[%clk 0:03:01]} 7. O-O {[%clk 0:03:02]}  Bg4 {[%clk 0:03:00]} 8. d5 {[%clk 0:03:02]}  Bxf3 {[%clk 0:02:57]} 9. Bxf3 {[%clk 0:03:03]}  a5 {[%clk 0:02:57]} 10. g3 {[%clk 0:03:03]}  Na6 {[%clk 0:02:57]} 11. Bg2 {[%clk 0:03:03]}  Nc5 {[%clk 0:02:57]} 12. Qc2 {[%clk 0:03:02]}  a4 {[%clk 0:02:55]} 13. Rb1 {[%clk 0:02:59]}  Nfd7 {[%clk 0:02:51]} 14. b4 {[%clk 0:02:59]}  axb3 {[%clk 0:02:51]} 15. axb3 {[%clk 0:03:00]}  f5 {[%clk 0:02:37]} 16. b4 {[%clk 0:03:00]}  Nxe4 {[%clk 0:02:37]} 17. Nxe4 {[%clk 0:02:59]}  fxe4 {[%clk 0:02:38]} 18. Bxe4 {[%clk 0:03:00]}  Nf6 {[%clk 0:02:37]} 19. Bg2 {[%clk 0:03:00]}  Qe7 {[%clk 0:02:26]} 20. h3 {[%clk 0:03:00]}  Rf7 {[%clk 0:02:26]} 21. Be3 {[%clk 0:03:00]}  Raf8 {[%clk 0:02:26]} 22. c5 {[%clk 0:03:00]}  Nh5 {[%clk 0:02:22]} 23. Kh2 {[%clk 0:02:59]}  Nf4 {[%clk 0:02:17]} 24. b5 {[%clk 0:02:50]}  Nxg2 {[%clk 0:02:01]} 25. Kxg2 {[%clk 0:02:51]}  e4 {[%clk 0:01:47]} 26. b6 {[%clk 0:02:50]}  Qe5 {[%clk 0:01:41]} 27. Qc4 {[%clk 0:02:38]}  h5 {[%clk 0:01:19]} 28. h4 {[%clk 0:02:33]}  Qf5 {[%clk 0:01:07]} 29. bxc7 {[%clk 0:02:17]}  Rxc7 {[%clk 0:00:54]} 30. Qb4 {[%clk 0:02:17]}  dxc5 {[%clk 0:00:31]} 31. Bxc5 {[%clk 0:02:15]}  Qf3+ {[%clk 0:00:26]} 32. Kh2 {[%clk 0:02:11]}  Rfc8 {[%clk 0:00:16]} 33. d6 {[%clk 0:02:03]}  Rf7 {[%clk 0:00:16]} 34. Be3 {[%clk 0:01:55]}  Qg4 {[%clk 0:00:16]} 35. Qb3 {[%clk 0:01:48]}  Rd8 {[%clk 0:00:15]} 36. Qd5 {[%clk 0:01:46]}  Rd7 {[%clk 0:00:13]} 37. Rbc1 {[%clk 0:01:38]}  Kh7 {[%clk 0:00:13]} 38. Rc8 {[%clk 0:01:36]}  Qe2 {[%clk 0:00:10]} 39. Kg1 {[%clk 0:01:33]}  Qf3 {[%clk 0:00:10]} 40. Rfc1 {[%clk 0:01:30]}  Bh6 {[%clk 0:00:08]} 41. Qe5 {[%clk 0:01:22]}  Bg7 {[%clk 0:00:07]} 42. Qd5 {[%clk 0:01:22]}  Bh6 {[%clk 0:00:08]} 43. Qe5 {[%clk 0:01:20]}  Bg7 {[%clk 0:00:08]} 44. Qe8 {[%clk 0:01:20]}  Bf8 {[%clk 0:00:04]} 45. R1c7 {[%clk 0:01:14]}  Qd1+ {[%clk 0:00:02]} 46. Kh2 {[%clk 0:01:14]} 1-0


[Site "https://www.chess.com"]

[Event "Titled Tuesday Blitz May 4 2021"]
[White "Mamedyarov, Shakhriyar"]
[Black "Vlassov, Nikolai"]
[WhiteFideId "13401319"]
[BlackFideId "4103360"]
[WhiteElo "2716"]
[BlackElo "2407"]
[Result "1-0"]
[Round "03"]
[TimeControl "180+1"]
[Date "2021.05.04"]
[WhiteClock "0:00:30"]
[BlackClock "0:00:06"]

1. d4 {[%clk 0:03:00]}  Nf6 {[%clk 0:02:59]} 2. c4 {[%clk 0:02:59]}  Nc6 {[%clk 0:02:59]} 3. d5 {[%clk 0:02:57]}  Ne5 {[%clk 0:02:59]} 4. Nc3 {[%clk 0:02:56]}  Nxc4 {[%clk 0:02:58]} 5. e4 {[%clk 0:02:55]}  Nb6 {[%clk 0:02:58]} 6. e5 {[%clk 0:02:54]}  Ng8 {[%clk 0:02:59]} 7. Nf3 {[%clk 0:02:51]}  e6 {[%clk 0:02:59]} 8. Bf4 {[%clk 0:02:44]}  Nxd5 {[%clk 0:02:49]} 9. Nxd5 {[%clk 0:02:43]}  exd5 {[%clk 0:02:49]} 10. Qxd5 {[%clk 0:02:37]}  Bb4+ {[%clk 0:02:48]} 11. Nd2 {[%clk 0:02:37]}  Ne7 {[%clk 0:02:47]} 12. Qe4 {[%clk 0:02:33]}  Bxd2+ {[%clk 0:02:41]} 13. Bxd2 {[%clk 0:02:34]}  d5 {[%clk 0:02:40]} 14. exd6 {[%clk 0:02:24]}  Qxd6 {[%clk 0:02:39]} 15. O-O-O {[%clk 0:02:22]}  Bf5 {[%clk 0:02:04]} 16. Qa4+ {[%clk 0:02:14]}  Qc6+ {[%clk 0:01:54]} 17. Qxc6+ {[%clk 0:02:13]}  Nxc6 {[%clk 0:01:54]} 18. Bc3 {[%clk 0:01:58]}  O-O {[%clk 0:01:48]} 19. Bb5 {[%clk 0:01:58]}  Rad8 {[%clk 0:01:37]} 20. Bxc6 {[%clk 0:01:55]}  bxc6 {[%clk 0:01:36]} 21. f3 {[%clk 0:01:53]}  Rd5 {[%clk 0:01:35]} 22. Rxd5 {[%clk 0:01:52]}  cxd5 {[%clk 0:01:35]} 23. Bd4 {[%clk 0:01:51]}  f6 {[%clk 0:01:28]} 24. Kd2 {[%clk 0:01:51]}  a6 {[%clk 0:01:11]} 25. Rc1 {[%clk 0:01:50]}  Rf7 {[%clk 0:01:09]} 26. Rc5 {[%clk 0:01:49]}  Be6 {[%clk 0:01:08]} 27. a3 {[%clk 0:01:34]}  Kf8 {[%clk 0:01:07]} 28. Bf2 {[%clk 0:01:23]}  Ke8 {[%clk 0:01:05]} 29. Bg3 {[%clk 0:01:23]}  Kd8 {[%clk 0:01:01]} 30. Kc3 {[%clk 0:01:23]}  Kc8 {[%clk 0:01:00]} 31. Rc6 {[%clk 0:01:21]}  Re7 {[%clk 0:00:53]} 32. Rxa6 {[%clk 0:01:18]}  Kb7 {[%clk 0:00:52]} 33. Ra5 {[%clk 0:01:18]}  c6 {[%clk 0:00:53]} 34. Bf2 {[%clk 0:01:15]}  Kb8 {[%clk 0:00:44]} 35. Bg3+ {[%clk 0:01:15]}  Kb7 {[%clk 0:00:43]} 36. Bf2 {[%clk 0:01:16]}  Kb8 {[%clk 0:00:44]} 37. Bc5 {[%clk 0:01:16]}  Rb7 {[%clk 0:00:38]} 38. Bd6+ {[%clk 0:01:14]}  Kc8 {[%clk 0:00:38]} 39. Ra8+ {[%clk 0:01:14]}  Kd7 {[%clk 0:00:38]} 40. Bc5 {[%clk 0:01:15]}  Bf5 {[%clk 0:00:35]} 41. b4 {[%clk 0:01:12]}  Rc7 {[%clk 0:00:15]} 42. Rg8 {[%clk 0:01:04]}  Ke6 {[%clk 0:00:15]} 43. a4 {[%clk 0:01:04]}  Kf7 {[%clk 0:00:14]} 44. Rf8+ {[%clk 0:01:04]}  Kg6 {[%clk 0:00:14]} 45. Rd8 {[%clk 0:00:38]}  Rc8 {[%clk 0:00:14]} 46. Rd6 {[%clk 0:00:38]}  Kf7 {[%clk 0:00:13]} 47. a5 {[%clk 0:00:36]}  Rc7 {[%clk 0:00:05]} 48. a6 {[%clk 0:00:35]}  Bc8 {[%clk 0:00:05]} 49. Bb6 {[%clk 0:00:31]}  Rd7 {[%clk 0:00:05]} 50. Rxd7+ {[%clk 0:00:30]}  Bxd7 {[%clk 0:00:05]} 51. a7 {[%clk 0:00:31]}  c5 {[%clk 0:00:06]} 52. a8=Q {[%clk 0:00:30]} 1-0


[Site "https://www.chess.com"]

[Event "Titled Tuesday Blitz May 4 2021"]
[White "Manolache, Marius"]
[Black "Kakabayev, Mergen"]
[WhiteFideId "1201530"]
[BlackFideId "14002990"]
[WhiteElo "2391"]
[BlackElo "2302"]
[Result "1-0"]
[Round "03"]
[TimeControl "180+1"]
[Date "2021.05.04"]
[WhiteClock "0:02:10"]
[BlackClock "0:01:51"]

1. d4 {[%clk 0:03:00]}  d5 {[%clk 0:02:58]} 2. c4 {[%clk 0:03:00]}  c6 {[%clk 0:02:58]} 3. Nf3 {[%clk 0:02:57]}  Nf6 {[%clk 0:02:56]} 4. Qc2 {[%clk 0:02:57]}  e6 {[%clk 0:02:55]} 5. e3 {[%clk 0:02:49]}  Nbd7 {[%clk 0:02:54]} 6. b3 {[%clk 0:02:49]}  Bd6 {[%clk 0:02:54]} 7. Bb2 {[%clk 0:02:48]}  O-O {[%clk 0:02:53]} 8. Bd3 {[%clk 0:02:45]}  b6 {[%clk 0:02:52]} 9. Nbd2 {[%clk 0:02:44]}  Bb7 {[%clk 0:02:50]} 10. Rd1 {[%clk 0:02:42]}  Rc8 {[%clk 0:02:48]} 11. Qb1 {[%clk 0:02:42]}  h6 {[%clk 0:02:46]} 12. h3 {[%clk 0:02:41]}  Qe7 {[%clk 0:02:44]} 13. O-O {[%clk 0:02:40]}  c5 {[%clk 0:02:44]} 14. Rfe1 {[%clk 0:02:39]}  cxd4 {[%clk 0:02:43]} 15. exd4 {[%clk 0:02:38]}  dxc4 {[%clk 0:02:39]} 16. bxc4 {[%clk 0:02:38]}  Rfd8 {[%clk 0:02:36]} 17. d5 {[%clk 0:02:37]}  Nc5 {[%clk 0:02:36]} 18. Bf5 {[%clk 0:02:17]}  Re8 {[%clk 0:02:05]} 19. Nb3 {[%clk 0:02:14]}  Qc7 {[%clk 0:01:51]} 20. Nxc5 {[%clk 0:02:10]} 1-0


[Site "https://www.chess.com"]

[Event "Titled Tuesday Blitz May 4 2021"]
[White "Marcinczyk, Monika"]
[Black "Smith, Shreyas"]
[WhiteFideId "1192051"]
[BlackFideId "7400713"]
[WhiteElo "1640"]
[BlackElo "2129"]
[Result "0-1"]
[Round "03"]
[TimeControl "180+1"]
[Date "2021.05.04"]
[WhiteClock "0:00:01"]
[BlackClock "0:00:17"]

1. e4 {[%clk 0:03:00]}  c6 {[%clk 0:02:59]} 2. d4 {[%clk 0:03:00]}  d5 {[%clk 0:03:00]} 3. exd5 {[%clk 0:03:01]}  cxd5 {[%clk 0:03:00]} 4. Bd3 {[%clk 0:03:02]}  Nc6 {[%clk 0:03:00]} 5. c3 {[%clk 0:03:02]}  Qc7 {[%clk 0:03:00]} 6. Ne2 {[%clk 0:02:58]}  Nf6 {[%clk 0:02:58]} 7. Bf4 {[%clk 0:02:57]}  e5 {[%clk 0:02:57]} 8. dxe5 {[%clk 0:02:53]}  Nxe5 {[%clk 0:02:58]} 9. Nd4 {[%clk 0:02:51]}  a6 {[%clk 0:02:45]} 10. O-O {[%clk 0:02:47]}  Bd6 {[%clk 0:02:41]} 11. Re1 {[%clk 0:02:23]}  O-O {[%clk 0:02:40]} 12. Bxe5 {[%clk 0:01:41]}  Bxe5 {[%clk 0:02:39]} 13. h3 {[%clk 0:01:34]}  Bd7 {[%clk 0:02:33]} 14. Nd2 {[%clk 0:01:27]}  Rfe8 {[%clk 0:02:20]} 15. N2f3 {[%clk 0:01:18]}  Bf4 {[%clk 0:02:20]} 16. Qc2 {[%clk 0:01:12]}  h6 {[%clk 0:02:03]} 17. a4 {[%clk 0:00:44]}  Rac8 {[%clk 0:01:57]} 18. Rxe8+ {[%clk 0:00:17]}  Rxe8 {[%clk 0:01:55]} 19. Qb3 {[%clk 0:00:17]}  Bc8 {[%clk 0:01:06]} 20. a5 {[%clk 0:00:15]}  Qd6 {[%clk 0:00:52]} 21. Ra4 {[%clk 0:00:07]}  Ne4 {[%clk 0:00:44]} 22. Rb4 {[%clk 0:00:02]}  Nc5 {[%clk 0:00:23]} 23. Qc2 {[%clk 0:00:02]}  Nxd3 {[%clk 0:00:22]} 24. Qxd3 {[%clk 0:00:02]}  Re4 {[%clk 0:00:19]} 25. Rb6 {[%clk 0:00:02]}  Qc5 {[%clk 0:00:18]} 26. b4 {[%clk 0:00:01]}  Qe7 {[%clk 0:00:17]} 0-1


[Site "https://www.chess.com"]

[Event "Titled Tuesday Blitz May 4 2021"]
[White "Martin, Lewis"]
[Black "Rakotomaharo, Fy Antenaina"]
[WhiteFideId "410551"]
[BlackFideId "13100050"]
[WhiteElo "2145"]
[BlackElo "2378"]
[Result "0-1"]
[Round "03"]
[TimeControl "180+1"]
[Date "2021.05.04"]
[WhiteClock "0:00:17"]
[BlackClock "0:00:32"]

1. e4 {[%clk 0:03:00]}  c5 {[%clk 0:02:54]} 2. Nf3 {[%clk 0:03:00]}  d6 {[%clk 0:02:54]} 3. d4 {[%clk 0:03:01]}  cxd4 {[%clk 0:02:55]} 4. Nxd4 {[%clk 0:03:01]}  Nf6 {[%clk 0:02:56]} 5. Nc3 {[%clk 0:03:02]}  a6 {[%clk 0:02:56]} 6. Bg5 {[%clk 0:03:02]}  e6 {[%clk 0:02:56]} 7. f4 {[%clk 0:03:01]}  Be7 {[%clk 0:02:56]} 8. Qf3 {[%clk 0:03:01]}  Qc7 {[%clk 0:02:56]} 9. O-O-O {[%clk 0:03:01]}  Nbd7 {[%clk 0:02:57]} 10. Bd3 {[%clk 0:03:00]}  h6 {[%clk 0:02:46]} 11. Bxf6 {[%clk 0:02:47]}  Nxf6 {[%clk 0:02:32]} 12. g4 {[%clk 0:02:43]}  g5 {[%clk 0:01:57]} 13. f5 {[%clk 0:02:28]}  Bd7 {[%clk 0:01:53]} 14. Rhe1 {[%clk 0:02:25]}  O-O-O {[%clk 0:01:51]} 15. h3 {[%clk 0:02:19]}  Kb8 {[%clk 0:01:49]} 16. Qe3 {[%clk 0:02:09]}  Rc8 {[%clk 0:01:39]} 17. Kb1 {[%clk 0:02:08]}  Qc5 {[%clk 0:01:19]} 18. Nb3 {[%clk 0:01:43]}  Qxe3 {[%clk 0:01:12]} 19. Rxe3 {[%clk 0:01:44]}  e5 {[%clk 0:00:54]} 20. Nd5 {[%clk 0:01:28]}  Nxd5 {[%clk 0:00:51]} 21. exd5 {[%clk 0:01:29]}  h5 {[%clk 0:00:51]} 22. Bf1 {[%clk 0:01:24]}  hxg4 {[%clk 0:00:49]} 23. hxg4 {[%clk 0:01:24]}  Rh2 {[%clk 0:00:48]} 24. c3 {[%clk 0:01:04]}  Bd8 {[%clk 0:00:42]} 25. Re2 {[%clk 0:00:41]}  Rh4 {[%clk 0:00:41]} 26. Re4 {[%clk 0:00:38]}  Rxg4 {[%clk 0:00:39]} 27. Rxg4 {[%clk 0:00:31]}  Bxf5+ {[%clk 0:00:38]} 28. Bd3 {[%clk 0:00:19]}  Bxg4 {[%clk 0:00:38]} 29. Nd2 {[%clk 0:00:17]}  f5 {[%clk 0:00:36]} 30. Nc4 {[%clk 0:00:17]}  Bxd1 {[%clk 0:00:32]} 0-1


[Site "https://www.chess.com"]

[Event "Titled Tuesday Blitz May 4 2021"]
[White "Martinez Lopez, David"]
[Black "Nozdrachev, Leonid"]
[WhiteFideId "22235779"]
[BlackFideId "24113433"]
[WhiteElo "2353"]
[BlackElo "2246"]
[Result "0-1"]
[Round "03"]
[TimeControl "180+1"]
[Date "2021.05.04"]
[WhiteClock "0:01:05"]
[BlackClock "0:02:07"]

1. e4 {[%clk 0:03:00]}  d6 {[%clk 0:03:00]} 2. d4 {[%clk 0:03:00]}  Nf6 {[%clk 0:03:01]} 3. Nc3 {[%clk 0:03:00]}  e5 {[%clk 0:03:01]} 4. Nf3 {[%clk 0:02:59]}  Nbd7 {[%clk 0:03:01]} 5. Bc4 {[%clk 0:02:57]}  Be7 {[%clk 0:03:01]} 6. O-O {[%clk 0:02:56]}  O-O {[%clk 0:03:02]} 7. a4 {[%clk 0:02:56]}  c6 {[%clk 0:03:02]} 8. h3 {[%clk 0:02:52]}  Qc7 {[%clk 0:03:03]} 9. Be3 {[%clk 0:02:50]}  Re8 {[%clk 0:03:03]} 10. Qd2 {[%clk 0:02:34]}  a6 {[%clk 0:02:53]} 11. Ng5 {[%clk 0:02:06]}  Rf8 {[%clk 0:02:46]} 12. f4 {[%clk 0:02:04]}  Rb8 {[%clk 0:02:30]} 13. a5 {[%clk 0:01:46]}  h6 {[%clk 0:02:24]} 14. Nf3 {[%clk 0:01:45]}  exd4 {[%clk 0:02:15]} 15. Bxd4 {[%clk 0:01:27]}  Nxe4 {[%clk 0:02:07]} 16. Bd3 {[%clk 0:01:05]} 0-1


[Site "https://www.chess.com"]

[Event "Titled Tuesday Blitz May 4 2021"]
[White "Matinian, Nikita"]
[Black "Pichot, Alan"]
[WhiteFideId "24129100"]
[BlackFideId "110973"]
[WhiteElo "2410"]
[BlackElo "2622"]
[Result "0-1"]
[Round "03"]
[TimeControl "180+1"]
[Date "2021.05.04"]
[WhiteClock "0:00:52"]
[BlackClock "0:01:48"]

1. e4 {[%clk 0:03:00]}  c5 {[%clk 0:02:58]} 2. Nf3 {[%clk 0:03:00]}  e6 {[%clk 0:02:58]} 3. d4 {[%clk 0:03:00]}  cxd4 {[%clk 0:02:59]} 4. Nxd4 {[%clk 0:03:01]}  Nc6 {[%clk 0:02:59]} 5. Nc3 {[%clk 0:03:02]}  Qc7 {[%clk 0:02:59]} 6. Be2 {[%clk 0:02:53]}  a6 {[%clk 0:02:58]} 7. O-O {[%clk 0:02:53]}  Nf6 {[%clk 0:02:57]} 8. Be3 {[%clk 0:02:49]}  Be7 {[%clk 0:02:57]} 9. f4 {[%clk 0:02:45]}  d6 {[%clk 0:02:57]} 10. Qe1 {[%clk 0:02:43]}  O-O {[%clk 0:02:55]} 11. Qg3 {[%clk 0:02:41]}  Nxd4 {[%clk 0:02:55]} 12. Bxd4 {[%clk 0:02:42]}  b5 {[%clk 0:02:56]} 13. a3 {[%clk 0:02:42]}  Bb7 {[%clk 0:02:55]} 14. Rae1 {[%clk 0:02:39]}  Bc6 {[%clk 0:02:52]} 15. Bd3 {[%clk 0:02:39]}  Rad8 {[%clk 0:02:44]} 16. Kh1 {[%clk 0:02:36]}  Qb7 {[%clk 0:02:43]} 17. Rf3 {[%clk 0:02:10]}  b4 {[%clk 0:02:27]} 18. axb4 {[%clk 0:01:51]}  Qxb4 {[%clk 0:02:28]} 19. Bxf6 {[%clk 0:01:48]}  Bxf6 {[%clk 0:02:26]} 20. e5 {[%clk 0:01:48]}  dxe5 {[%clk 0:02:15]} 21. fxe5 {[%clk 0:01:48]}  Bh4 {[%clk 0:02:00]} 22. Qh3 {[%clk 0:00:57]}  Rxd3 {[%clk 0:01:53]} 23. Rxd3 {[%clk 0:00:53]}  Bxe1 {[%clk 0:01:52]} 24. Nd1 {[%clk 0:00:52]}  Qf4 {[%clk 0:01:48]} 0-1


[Site "https://www.chess.com"]

[Event "Titled Tuesday Blitz May 4 2021"]
[White "Maung, Maung Kyaw Zaw Hein"]
[Black "Abdalla, Luiz Guilherme Aurelli"]
[WhiteFideId "13001698"]
[BlackFideId "2111080"]
[WhiteElo "1785"]
[BlackElo "2152"]
[Result "1/2-1/2"]
[Round "03"]
[TimeControl "180+1"]
[Date "2021.05.04"]
[WhiteClock "0:00:24"]
[BlackClock "0:00:27"]

1. Nf3 {[%clk 0:02:59]}  d5 {[%clk 0:03:00]} 2. d4 {[%clk 0:02:59]}  c6 {[%clk 0:03:00]} 3. c4 {[%clk 0:02:59]}  Nf6 {[%clk 0:03:01]} 4. Nc3 {[%clk 0:03:00]}  Bf5 {[%clk 0:03:00]} 5. cxd5 {[%clk 0:03:00]}  cxd5 {[%clk 0:02:59]} 6. Qb3 {[%clk 0:03:00]}  Bc8 {[%clk 0:02:58]} 7. Bf4 {[%clk 0:03:00]}  Nc6 {[%clk 0:02:57]} 8. e3 {[%clk 0:03:00]}  e6 {[%clk 0:02:57]} 9. Bd3 {[%clk 0:02:56]}  Bd6 {[%clk 0:02:56]} 10. Bg3 {[%clk 0:02:56]}  Bxg3 {[%clk 0:02:54]} 11. hxg3 {[%clk 0:02:55]}  O-O {[%clk 0:02:54]} 12. O-O {[%clk 0:02:55]}  a6 {[%clk 0:02:48]} 13. Na4 {[%clk 0:02:53]}  Nd7 {[%clk 0:02:48]} 14. Rac1 {[%clk 0:02:53]}  Na5 {[%clk 0:02:47]} 15. Qc2 {[%clk 0:02:50]}  b5 {[%clk 0:02:45]} 16. Nc5 {[%clk 0:02:30]}  Nxc5 {[%clk 0:02:45]} 17. Qxc5 {[%clk 0:02:14]}  Bb7 {[%clk 0:02:44]} 18. Qc7 {[%clk 0:02:12]}  Rc8 {[%clk 0:02:36]} 19. Qxd8 {[%clk 0:02:12]}  Rfxd8 {[%clk 0:02:36]} 20. b3 {[%clk 0:02:12]}  Nc6 {[%clk 0:02:32]} 21. Bb1 {[%clk 0:02:03]}  b4 {[%clk 0:02:28]} 22. Bd3 {[%clk 0:02:00]}  Kf8 {[%clk 0:02:16]} 23. Rc5 {[%clk 0:01:57]}  h6 {[%clk 0:02:14]} 24. Rfc1 {[%clk 0:01:57]}  a5 {[%clk 0:01:44]} 25. Be2 {[%clk 0:01:45]}  Ke7 {[%clk 0:01:40]} 26. Ne1 {[%clk 0:01:40]}  Kd6 {[%clk 0:01:39]} 27. f4 {[%clk 0:01:37]}  Rc7 {[%clk 0:01:32]} 28. Nd3 {[%clk 0:01:37]}  Rdc8 {[%clk 0:01:31]} 29. Kf2 {[%clk 0:01:27]}  f6 {[%clk 0:01:24]} 30. Nb2 {[%clk 0:01:22]}  Ne7 {[%clk 0:01:19]} 31. Na4 {[%clk 0:01:17]}  Rxc5 {[%clk 0:01:17]} 32. Rxc5 {[%clk 0:01:12]}  Rxc5 {[%clk 0:01:16]} 33. Nxc5 {[%clk 0:01:11]}  Bc8 {[%clk 0:01:12]} 34. Bg4 {[%clk 0:00:46]}  Nc6 {[%clk 0:00:52]} 35. Ke2 {[%clk 0:00:41]}  Na7 {[%clk 0:00:52]} 36. Kd3 {[%clk 0:00:36]}  Nb5 {[%clk 0:00:52]} 37. Na4 {[%clk 0:00:36]}  Bd7 {[%clk 0:00:46]} 38. Kd2 {[%clk 0:00:36]}  Be8 {[%clk 0:00:42]} 39. Nc5 {[%clk 0:00:35]}  f5 {[%clk 0:00:31]} 40. Be2 {[%clk 0:00:25]}  Nc3 {[%clk 0:00:31]} 41. Nb7+ {[%clk 0:00:24]}  Kc7 {[%clk 0:00:29]} 42. Nc5 {[%clk 0:00:24]}  Kd6 {[%clk 0:00:28]} 43. Nb7+ {[%clk 0:00:23]}  Kc7 {[%clk 0:00:28]} 44. Nc5 {[%clk 0:00:24]}  Kd6 {[%clk 0:00:27]} 1/2-1/2


[Site "https://www.chess.com"]

[Event "Titled Tuesday Blitz May 4 2021"]
[White "Mayeregger, Arnold"]
[Black "Rustemov, Alexander"]
[WhiteFideId "3705226"]
[BlackFideId "4119002"]
[WhiteElo "1567"]
[BlackElo "2618"]
[Result "0-1"]
[Round "03"]
[TimeControl "180+1"]
[Date "2021.05.04"]
[WhiteClock "0:00:04"]
[BlackClock "0:00:59"]

1. e4 {[%clk 0:03:00]}  e6 {[%clk 0:02:57]} 2. d4 {[%clk 0:02:59]}  d5 {[%clk 0:02:57]} 3. e5 {[%clk 0:02:59]}  c5 {[%clk 0:02:57]} 4. c3 {[%clk 0:03:00]}  Qb6 {[%clk 0:02:56]} 5. Nf3 {[%clk 0:03:00]}  Bd7 {[%clk 0:02:56]} 6. Be2 {[%clk 0:03:00]}  Bb5 {[%clk 0:02:55]} 7. Bxb5+ {[%clk 0:03:00]}  Qxb5 {[%clk 0:02:55]} 8. a4 {[%clk 0:03:00]}  Qa6 {[%clk 0:02:51]} 9. Na3 {[%clk 0:03:01]}  cxd4 {[%clk 0:02:38]} 10. Nb5 {[%clk 0:03:01]}  Qb6 {[%clk 0:02:36]} 11. cxd4 {[%clk 0:02:57]}  a6 {[%clk 0:02:31]} 12. Nc3 {[%clk 0:02:51]}  Nc6 {[%clk 0:02:28]} 13. O-O {[%clk 0:02:51]}  Bb4 {[%clk 0:02:25]} 14. Be3 {[%clk 0:02:36]}  Nge7 {[%clk 0:02:23]} 15. Rc1 {[%clk 0:02:33]}  Rc8 {[%clk 0:02:14]} 16. Qd3 {[%clk 0:02:32]}  h6 {[%clk 0:02:13]} 17. h4 {[%clk 0:02:28]}  O-O {[%clk 0:02:12]} 18. g4 {[%clk 0:02:12]}  f6 {[%clk 0:02:03]} 19. exf6 {[%clk 0:02:05]}  Rxf6 {[%clk 0:02:02]} 20. Ne5 {[%clk 0:02:02]}  Qc7 {[%clk 0:01:56]} 21. Nb5 {[%clk 0:01:31]}  Qd8 {[%clk 0:01:38]} 22. Nc3 {[%clk 0:01:17]}  Nxe5 {[%clk 0:01:27]} 23. dxe5 {[%clk 0:01:17]}  Rf3 {[%clk 0:01:28]} 24. Kg2 {[%clk 0:00:58]}  Qf8 {[%clk 0:01:15]} 25. Qe2 {[%clk 0:00:44]}  Ng6 {[%clk 0:01:15]} 26. h5 {[%clk 0:00:34]}  Nh4+ {[%clk 0:01:05]} 27. Kh2 {[%clk 0:00:30]}  Rc4 {[%clk 0:01:06]} 28. Rg1 {[%clk 0:00:12]}  Rxe3 {[%clk 0:01:01]} 29. Qxe3 {[%clk 0:00:08]}  Nf3+ {[%clk 0:01:02]} 30. Kh1 {[%clk 0:00:08]}  Nxg1 {[%clk 0:01:02]} 31. Rxg1 {[%clk 0:00:09]}  Bc5 {[%clk 0:01:03]} 32. Qe2 {[%clk 0:00:06]}  Qxf2 {[%clk 0:01:02]} 33. Qxc4 {[%clk 0:00:04]}  Qxg1# {[%clk 0:00:59]} 0-1


[Site "https://www.chess.com"]